[Event "13th Rheinland-Pfalz-Open 2023"]
[Site "Neuwied-Engers"]
[Date "2023.06.10"]
[Round "5.2"]
[White "du Maire, Jerome"]
[Black "Polster, Christian"]
[Result "1/2-1/2"]
[Annotator "TA"]
[ECO "E04"]
[WhiteElo "2129"]
[BlackElo "2250"]
[PlyCount "152"]
[EventDate "2023.01.12"]
[EventType "swiss"]
[EventCountry "GER"]
[SourceTitle "playchess.com"]
[Source "ChessBase"]
[SourceQuality "1"]
[TimeControl "40/5400+30:1800+30"]

{[%evp 10,152,25,27,41,40,39,42,58,39,37,61,52,66,60,59,52,15,15,5,14,0,31,16,16,19,37,24,29,18,26,22,22,33,35,20,29,23,31,31,51,33,56,43,52,10,7,12,36,14,14,5,5,4,8,5,6,0,0,0,6,0,0,0,0,0,0,0,0,-22,-20,-22,-28,-57,-57,-57,-57,-57,-57,-74,-55,-82,-57,-177,-58,-60,0,-211,-61,-69,-61,-72,-55,-55,-55,-77,-82,-89,-89,-89,-89,-88,-87,-147,-141,-140,-122,-128,-74,-74,-74,-61,-61,-81,-81,-81,-81,-81,0,0,0,-8,-8,-8,-8,-8,-8,-8,-8,-8,0,0,0,0,0,0,0,0,0,0,0,0,0,0,0]} 1. d4 {[%emt 0:00:03]} Nf6 {[%emt 0:00:12]} 2. c4 {[%emt 0:00:10]} e6 {[%emt 0:00:11]} 3. g3 {[%emt 0:00:25]} d5 {[%emt 0:00:08]} 4. Bg2 {[%emt 0:00:08]} dxc4 {[%emt 0:08:20]} 5. Nf3 {[%emt 0:00:43]} Nc6 {[%emt 0:00:49]} 6. Qa4 {[%emt 0:00:53]} Nd7 {[%emt 0:00:29] E04: Open Catalan: 5 Nf3.} 7. Qxc4 {[%emt 0:05:08]} Nb6 {[%emt 0:01:23]} 8. Qd3 {[%emt 0:01:38]} Nb4 {[%emt 0:12:15] White is slightly better.} 9. Qd1 {[%emt 0:04:18]} e5 {[%emt 0:01:57]} 10. a3 {[%emt 0:03:32]} (10. Nxe5 Qxd4 11. Qxd4 Nc2+ 12. Kf1 Nxd4 $11) 10... Nc6 {[%emt 0:03:36][%cal Re5d4] [#]} 11. Nxe5 $146 {[%emt 0:02:58]} ({But not} 11. dxe5 Qxd1+ 12. Kxd1 Be6 $11) ({Predecessor:} 11. d5 Nxd5 12. Nxe5 Nxe5 13. Qxd5 Qxd5 14. Bxd5 c6 15. Ba2 Bc5 16. Bd2 Bh3 17. Bc3 {0-1 Luciani,V (2175)-Lagumina,G (2260) Porto San Giorgio op 7th 1995}) 11... Nxd4 {[%emt 0:03:34]} 12. e3 {[%emt 0:14:07]} Ne6 {[%emt 0:01:48]} 13. Qxd8+ {[%emt 0:05:31]} Nxd8 {[%emt 0:01:21]} 14. Nd2 {[%emt 0:04:03]} Be6 {[%emt 0:10:33]} 15. b3 {[%emt 0:00:50][%cal Bb2b3,Bb3b4][%mdl 32]} a5 {[%emt 0:01:21]} 16. Bb2 {[%emt 0:01:27][%cal Bc1b2,Bb2d4,Bd4b6][%mdl 32]} f6 {[%emt 0:04:22]} 17. Nd3 {[%emt 0:01:56]} a4 {[%emt 0:07:54]} 18. b4 {[%emt 0:00:16]} Nc4 {[%emt 0:00:20]} 19. Bd4 {[%emt 0:01:18]} c6 {[%emt 0:07:47]} 20. Ke2 {[%emt 0:08:23]} Bg4+ {[%emt 0:09:55]} 21. f3 {[%emt 0:01:17]} Nxd2 {[%emt 0:00:49]} 22. Kxd2 {[%emt 0:00:32]} Bc8 {[%emt 0:01:53]} 23. e4 {[%emt 0:02:31]} Ne6 {[%emt 0:01:19]} 24. Bb6 {[%emt 0:04:07]} Be7 {[%emt 0:03:09]} 25. Rac1 {[%emt 0:08:43]} Ra6 {[%emt 0:04:18]} 26. Be3 {[%emt 0:01:02]} Nc7 {[%emt 0:00:45]} 27. Nb2 {[%emt 0:03:16]} Be6 {[%emt 0:03:26]} 28. Bf1 {[%emt 0:01:02]} Nb5 {[%emt 0:01:49]} 29. Bxb5 {[%emt 0:04:44]} ({Reject} 29. Bc4 Bxc4 30. Nxc4 Nxa3 31. Nxa3 Bxb4+ 32. Rc3 O-O $11) 29... cxb5 {[%emt 0:00:02]} 30. Rc7 {[%emt 0:00:55]} Rd6+ {[%emt 0:01:00]} 31. Ke2 {[%emt 0:01:20]} Rd7 {[%emt 0:00:41]} 32. Rxd7 {[%emt 0:03:27]} Bxd7 {[%emt 0:02:25]} 33. Rc1 {[%emt 0:03:31]} Bc6 {[%emt 0:00:20]} 34. Nd3 {[%emt 0:00:19]} Bd6 {[%emt 0:02:00]} 35. Bf4 {[%emt 0:00:51]} Be7 {[%emt 0:00:17]} 36. Be3 {[%emt 0:03:21]} Bd6 {[%emt 0:00:13]} 37. Bc5 {[%emt 0:01:07]} Bc7 {[%emt 0:00:22]} 38. Ke3 {[%emt 0:02:41]} Kf7 {[%emt 0:00:18]} 39. Re1 {[%emt 0:02:21]} h5 {[%emt 0:02:38]} 40. f4 {[%emt 0:03:51]} Re8 {[%emt 0:00:34][%cal Ob7b6] [#] White must now prevent ...b6!} 41. e5 {[%emt 0:31:44]} fxe5 {[%emt 0:31:40]} 42. Nxe5+ {[%emt 0:00:00]} Bxe5 {[%emt 0:00:00]} 43. fxe5 {[%emt 0:00:00]} Rxe5+ $15 {[%emt 0:00:00][%mdl 4096] Endgame KRB-KRB} 44. Kf2 {[%emt 0:00:00]} Rd5 {[%emt 0:00:00]} 45. h4 {[%emt 0:00:00]} Rf5+ {[%emt 0:00:00]} 46. Kg1 {[%emt 0:00:00]} (46. Ke2 $1 $15) 46... Kg6 {[%emt 0:00:00]} ({Black should try} 46... Rf3 $19 47. Rf1 Ke6 48. Rxf3 Bxf3) 47. Re6+ {[%emt 0:00:00]} Kf7 $2 {[%emt 0:00:00]} (47... Kh7 $15) 48. Re1 $1 $19 {[%emt 0:00:00]} Kg8 {[%emt 0:00:00]} (48... Rf3 $19 49. Rf1 Ke6 50. Rxf3 Bxf3) 49. Re3 {[%emt 0:00:00]} Kh7 {[%emt 0:00:00]} 50. Bb6 {[%emt 0:00:00]} Bd5 {[%emt 0:00:00]} 51. Bc7 {[%emt 0:00:00]} Bc4 {[%emt 0:00:00]} 52. Bf4 {[%emt 0:00:00]} Rd5 {[%emt 0:00:00]} 53. Rc3 {[%emt 0:00:00]} Kg6 {[%emt 0:00:00]} 54. Kf2 {[%emt 0:00:00]} Rd1 {[%emt 0:00:00]} 55. Kf3 {[%emt 0:00:00]} Kf5 {[%emt 0:00:00]} 56. Bc1 {[%emt 0:00:50]} ({White should play} 56. Ke3) 56... g6 $17 {[%emt 0:00:00]} 57. Bg5 {[%emt 0:00:31]} Rf1+ {[%emt 0:00:00]} 58. Ke3 {[%emt 0:02:35]} Kg4 {[%emt 0:00:00]} (58... Re1+ $142 59. Kd4 b6 60. Rf3+ Kg4) 59. Kd4 {[%emt 0:00:12]} Rf5 {[%emt 0:00:00]} 60. Bh6 {[%emt 0:00:16]} Be2 {[%emt 0:03:26]} 61. Bg7 {[%emt 0:04:25]} g5 {[%emt 0:02:44]} 62. hxg5 {[%emt 0:00:09]} Rxg5 {[%emt 0:00:24]} 63. Be5 {[%emt 0:00:36] [#]} Rxe5 {[%emt 0:02:44]} 64. Kxe5 {[%emt 0:00:04] And now Ke4 would win. KR-KB. The position is equal.} Bf3 {[%emt 0:00:09]} 65. Kd6 {[%emt 0:00:37]} Kxg3 {[%emt 0:01:01]} 66. Kc5 {[%emt 0:00:06]} h4 {[%emt 0:02:09][%cal Bh5h4,Bh4h3,Bh3h2][%mdl 32]} 67. Kxb5 {[%emt 0:00:28]} h3 {[%emt 0:00:24]} 68. Kxa4 {[%emt 0:01:45]} h2 {[%emt 0:00:29]} 69. Rc1 {[%emt 0:00:08]} Kf2 {[%emt 0:01:27]} 70. Kb5 {[%emt 0:00:27]} Bg2 {[%emt 0:01:13] ( -> ...Bf1+)} 71. Kb6 {[%emt 0:00:39]} Bf1 {[%emt 0:00:52]} 72. Rc2+ {[%emt 0:00:07]} Be2 {[%emt 0:00:07]} 73. Rc1 $1 {[%emt 0:00:33][%cal Oc1h1] Hoping for Rh1!} Bf1 {[%emt 0:00:12]} 74. Rc2+ {[%emt 0:00:07]} Be2 {[%emt 0:00:26]} 75. Rc1 $1 {[%emt 0:00:05][%cal Oc1h1] Rh1! would be deadly.} Bf1 {[%emt 0:00:24]} 76. Rc2+ {[%emt 0:00:06]} Be2 {[%emt 0:00:41] Weighted Error Value: White=0.09 (flawless) /Black=0.15 (very precise) .  Loses game:     	---       	---        Missed win:     	---       	---        Mistake:       	White=2     	Black=5      Inaccurate:     	White=4     	Black=1      OK:         	White=22    	Black=27     Best:        	White=6     	Black=5      Strong:       	White=3     	---        Brilliant:      	---       	---} 1/2-1/2

[Event "13th Rheinland-Pfalz-Open 2023"]
[Site "Neuwied-Engers"]
[Date "2023.06.10"]
[Round "5.3"]
[White "Peng, Li Min"]
[Black "Koehler, Christian Friedrich"]
[Result "1-0"]
[Annotator "TA"]
[ECO "C42"]
[WhiteElo "2530"]
[BlackElo "2202"]
[PlyCount "55"]
[EventDate "2023.01.12"]
[EventType "swiss"]
[EventCountry "GER"]
[SourceTitle "playchess.com"]
[Source "ChessBase"]
[SourceQuality "1"]
[TimeControl "40/5400+30:1800+30"]

{[%evp 9,55,-36,-25,-38,-24,-39,-27,-18,0,-16,0,0,74,63,76,29,40,13,51,30,60,0,81,63,120,110,130,65,168,171,160,171,172,177,207,210,316,305,607,603,600,590,653,643,787,780,29990,29991]} 1. e4 {[%emt 0:08:54]} e5 {[%emt 0:00:12]} 2. Nf3 {[%emt 0:00:30]} Nf6 {[%emt 0:00:37]} 3. Nxe5 {[%emt 0:02:57]} d6 {[%emt 0:00:07]} 4. Nxf7 {[%emt 0:00:06]} Kxf7 {[%emt 0:00:15]} 5. Nc3 {[%emt 0:00:02]} c5 {[%emt 0:02:16]} 6. Bc4+ {[%emt 0:01:05] C42: Petroff Defence: 3 Nxe5 and unusual White 3rd moves.} Be6 {[%emt 0:00:30]} 7. Bxe6+ {[%emt 0:00:17]} Kxe6 {[%emt 0:00:03]} 8. d4 $1 {[%emt 0:00:21][%cal Bd2d4,Bd4c5][%mdl 32] Black has an edge.} (8. Qf3 Nc6 9. O-O (9. Qf5+ $2 Kf7 $19) 9... Kf7 $17) 8... Kf7 {[%emt 0:05:56]} 9. dxc5 $1 {[%emt 0:00:06]} Nc6 {[%emt 0:01:59]} 10. Qe2 $1 {[%emt 0:03:35]} g6 {[%emt 0:26:00] [#]} (10... Qd7 $11) 11. Bg5 $146 {[%emt 0:01:07][%mdl 1024] White has strong compensation.} ({Predecessor:} 11. O-O Qa5 12. b4 Qxb4 13. Rb1 Qxc5 14. Rxb7+ Be7 15. Nd5 Rab8 16. Be3 Qa5 17. Nxe7 Rxb7 18. Nxc6 {½-½ Nelis,J (2242)-Gourion,D (2014) FRA-chT2 South 0809 2008 (5.6)}) 11... h6 {[%emt 0:07:08]} 12. Bh4 {[%emt 0:00:03] White is more active.} (12. Bxf6 $16 Qxf6 13. Nd5 Qxb2 14. O-O) 12... Qa5 {[%emt 0:08:58]} (12... dxc5 13. e5 Nxe5 14. Qxe5 $16) 13. O-O-O {[%emt 0:01:44]} (13. Qf3 g5 14. Bg3 Qxc5 $15) 13... g5 {[%emt 0:04:07]} ({Don't do} 13... Qxc5 14. Bxf6 (14. Qf3 g5 $11) 14... Kxf6 15. Rd5 $16 (15. Qf3+ Kg7 $17)) 14. Bg3 {[%emt 0:00:29]} Qxc5 {[%emt 0:00:07]} 15. Rhf1 {[%emt 0:02:24]} (15. f4 $14) 15... Re8 {[%emt 0:04:34] [#]} (15... Kg8 $1 $11) 16. f4 $1 {[%emt 0:05:06][%cal Oe4e5] Strongly threatening e5!} Re6 {[%emt 0:00:01]} (16... Nd4 $2 17. Qd3 Nc6 18. Nd5 Nxd5 19. exd5 $16 (19. fxg5+ Ke7 $16)) (16... Bg7 $14) 17. fxg5 {[%emt 0:13:18]} hxg5 {[%emt 0:04:21] [#]} ({Much less strong is} 17... Qxg5+ 18. Kb1 $14) 18. e5 {[%emt 0:03:03] Really sharp!} ({Better is} 18. Rd5 $1 $16 {[%mdl 512]} Qb6 19. Rdf5) 18... Rxe5 {[%emt 0:03:40]} ({Black should try} 18... Nxe5 $14 19. Ne4 Qc4 20. Qxc4 (20. Nxg5+ Ke7 $14) 20... Nxc4 21. Nxg5+ Ke7) 19. Bxe5 $18 {[%emt 0:01:17]} Qxe5 {[%emt 0:00:11]} (19... Nxe5 $2 20. Ne4 Qb6 21. Nxf6 $18) 20. Qc4+ {[%emt 0:00:40]} Kg7 {[%emt 0:00:55]} 21. Rde1 {[%emt 0:00:32][%cal Bd1e1,Be1f1,Bf1f6][%mdl 32]} Qd4 {[%emt 0:14:42]} 22. Qe6 {[%emt 0:00:26]} Be7 {[%emt 0:02:10]} (22... Rh6 $142 23. Ne4 Nd8) 23. Rf5 {[%emt 0:00:17][%cal Bf1f5,Bf5g5,Bg5g3][%mdl 32]} Rf8 $2 {[%emt 0:02:10]} (23... Rxh2 24. Nb5 Qh4) 24. Rxg5+ {[%emt 0:00:18]} Kh8 {[%emt 0:00:23]} 25. Rf1 {[%emt 0:00:31][%cal Of1f6] Prevents Qf4+. Black must now prevent Rxf6!} Qh4 {[%emt 0:03:50]} 26. Rg3 {[%emt 0:00:08]} Qh6+ {[%emt 0:01:01]} 27. Kb1 {[%emt 0:00:10]} Qd2 {[%emt 0:00:04] [#]} 28. Rxf6 $1 {[%emt 0:00:17][%mdl 512] Beautiful play by Peng!   Weighted Error Value: White=0.09 (flawless) /Black=0.86} 1-0

[Event "13th Rheinland-Pfalz-Open 2023"]
[Site "Neuwied-Engers"]
[Date "2023.06.10"]
[Round "5.4"]
[White "Drahtschmidt, Peter"]
[Black "Stillger, Bernhard"]
[Result "0-1"]
[Annotator "TA"]
[ECO "A36"]
[WhiteElo "2133"]
[BlackElo "2289"]
[PlyCount "82"]
[EventDate "2023.01.12"]
[EventType "swiss"]
[EventCountry "GER"]
[SourceTitle "playchess.com"]
[Source "ChessBase"]
[SourceQuality "1"]
[TimeControl "40/5400+30:1800+30"]

{[%evp 20,82,-6,-7,-19,-8,8,6,10,-7,-2,-23,-4,-23,-23,-49,-59,-72,-74,-66,-23,-139,-130,-157,-143,-145,-92,-89,-92,-85,-48,-48,-48,-50,-61,-61,-27,-17,-27,-143,-150,-131,-114,-205,0,0,0,-201,-203,-193,-181,-493,-473,-695,-689,-684,-629,-929,-733,-955,-748,-1170,-918,-29992,-29993]} 1. c4 {[%emt 0:00:01]} c5 {[%emt 0:01:05]} 2. Nc3 {[%emt 0:00:10]} g6 {[%emt 0:00:53]} 3. g3 {[%emt 0:00:04]} Bg7 {[%emt 0:00:05]} 4. Bg2 {[%emt 0:00:04]} Nc6 {[%emt 1:30:27]} 5. d3 d6 {[%emt 0:00:00]} 6. e4 {[%emt 0:00:24]} e6 {[%emt 0:00:00]} 7. Nge2 {[%emt 0:02:52]} Nge7 {[%emt 0:00:00][%cal Bg8e7,Be7c6,Bc6d4][%mdl 32]} 8. Be3 {[%emt 0:01:05]} Nd4 {[%emt 0:00:00]} 9. O-O {[%emt 0:01:42]} O-O {[%emt 0:00:00]} 10. Qd2 {[%emt 0:00:28]} Nec6 {[%emt 0:00:00]} 11. Bh6 {[%emt 0:02:54]} Bxh6 {[%emt 0:00:00] A36: Symmetrical English vs ...g6: 4 Bg2 Bg7.} 12. Qxh6 {[%emt 0:00:16]} Qf6 {[%emt 0:00:00]} 13. Nxd4 {[%emt 0:26:18]} Nxd4 {[%emt 0:00:00] The position is equal.} 14. f4 {[%emt 0:01:33]} Qg7 {[%emt 0:00:00]} 15. Qh4 {[%emt 0:04:50] [#]} f6 $146 {[%emt 0:00:00][%cal Bf7f6,Bf6g5][%mdl 32]} ({Predecessor:} 15... Bd7 16. g4 Bc6 17. Rf2 Rab8 18. a4 Kh8 19. Re1 f6 20. Qg3 e5 21. Ref1 Ne6 {½-½ Gabrielian,A (2448)-Iskusnyh,S (2473) Titled Tuesday intern op 09th Mar blitz 2021 (10)}) 16. g4 {[%emt 0:09:43]} Bd7 {[%emt 0:00:00]} 17. Rae1 {[%emt 0:02:06][%cal Of4f5]} g5 {[%emt 0:00:00]} 18. fxg5 {[%emt 0:04:18]} fxg5 {[%emt 0:00:00]} 19. Qg3 {[%emt 0:00:46]} Qe5 {[%emt 0:00:00]} (19... e5 {simplifies} 20. Rxf8+ Rxf8 21. Nd5 Ne6) 20. Qh3 {[%emt 0:10:44]} (20. Rxf8+ $11 {keeps the balance.} Rxf8 21. Qxe5 dxe5 22. Rf1) 20... Kg7 $17 {[%emt 0:00:00] Black is much more active.} 21. Ne2 {[%emt 0:15:51]} Rxf1+ {[%emt 0:00:00]} 22. Bxf1 {[%emt 0:01:16]} Rf8 {[%emt 0:00:00]} (22... Nc2 $142 23. Rb1 Rf8) 23. Nxd4 {[%emt 0:05:03]} Qxd4+ {[%emt 0:00:00]} (23... cxd4 {simplifies} 24. Qg3 Qa5 25. Ra1 Rf4) 24. Qe3 {[%emt 0:00:07]} Kf6 {[%emt 0:00:00]} ({Much weaker is} 24... Qxb2 $6 25. Qxg5+ Kh8 26. Be2 $11) 25. Qxd4+ {[%emt 0:02:36]} cxd4 $15 {[%emt 0:00:00][%mdl 4096] Endgame KRB-KRB} 26. e5+ {[%emt 0:00:18]} dxe5 {[%emt 0:00:00]} 27. Bg2 {[%emt 0:00:11]} Rb8 {[%emt 0:00:53]} 28. Rf1+ {[%emt 0:02:09]} Ke7 {[%emt 0:02:34]} 29. b4 {[%emt 0:01:21]} (29. Re1 $1 $11 {remains equal.}) 29... Bc6 $17 {[%emt 0:00:50]} 30. a3 {[%emt 0:02:48]} a6 {[%emt 0:02:20][%cal Oe5e4]} 31. Re1 {[%emt 0:01:15] [#]} (31. Bxc6 $17 {was worth a try.} bxc6 32. Kf2) 31... Kf6 $2 {[%emt 0:01:43]} (31... Bxg2 $1 $19 32. Kxg2 Kd6) 32. Rf1+ $11 {[%emt 0:00:11]} Ke7 $2 {[%emt 0:00:40]} (32... Kg7 $11) 33. Re1 $19 {[%emt 0:00:01] [#]} Bxg2 {[%emt 0:01:17]} 34. Kxg2 {[%emt 0:00:01] KR-KR} Kd6 {[%emt 0:00:07]} 35. Rf1 $2 {[%emt 0:00:11] [#]} (35. Kg3) 35... e4 $1 {[%emt 0:00:27][%cal Be5e4,Be4d3][%mdl 544]} 36. Rf7 {[%emt 0:01:37]} (36. dxe4 $142 Ke5 37. Rf7) (36. c5+ Ke5) 36... exd3 {[%emt 0:00:48]} 37. Kf3 {[%emt 0:00:00]} Ke5 {[%emt 0:01:31]} 38. h3 {[%emt 0:00:08]} b6 {[%emt 0:00:30] Threatens to win with ...Rc8.} 39. Kf2 {[%emt 0:01:25]} Rc8 {[%emt 0:00:14]} 40. Rb7 {[%emt 0:01:11]} Rxc4 {[%emt 0:00:06] ( -> ...Rc1)} 41. Rxb6 {[%emt 0:30:16]} Rc1 {[%emt 0:30:10] Weighted Error Value: White=0.77/Black=0.41} 0-1

[Event "13th Rheinland-Pfalz-Open 2023"]
[Site "Neuwied-Engers"]
[Date "2023.06.10"]
[Round "5.5"]
[White "Chassard, Cedric"]
[Black "Ronge, Tim"]
[Result "1/2-1/2"]
[Annotator "TA"]
[ECO "B30"]
[WhiteElo "2094"]
[BlackElo "2266"]
[PlyCount "86"]
[EventDate "2023.01.12"]
[EventType "swiss"]
[EventCountry "GER"]
[SourceTitle "playchess.com"]
[Source "ChessBase"]
[SourceQuality "1"]
[TimeControl "40/5400+30:1800+30"]

{[%evp 9,86,14,36,39,56,53,53,44,33,40,54,49,38,5,34,5,33,46,50,35,29,20,17,25,68,77,158,162,171,172,174,130,289,270,275,120,247,116,160,133,149,103,120,111,108,96,94,60,54,57,48,48,56,65,58,45,59,54,57,35,42,37,35,8,10,0,27,0,0,0,0,0,0,0,0,0,0,0,0]} 1. e4 {[%emt 0:00:03]} c5 {[%emt 0:04:27]} 2. Nf3 {[%emt 0:00:07]} Nc6 {[%emt 0:00:03]} 3. Bb5 {[%emt 0:00:05]} e6 {[%emt 0:00:07]} 4. Bxc6 {[%emt 0:00:05]} bxc6 {[%emt 0:00:03]} 5. b3 {[%emt 0:00:50]} d6 {[%emt 0:04:12]} 6. e5 {[%emt 0:01:06] B30: Sicilian: 2...Nc6 3 Bb5, lines without ...g6.} f6 {[%emt 0:00:06]} 7. exd6 {[%emt 0:02:50]} Bxd6 {[%emt 0:04:11]} 8. d3 {[%emt 0:01:49] White is slightly better.} Ne7 {[%emt 0:01:26] [#]} 9. Na3 $146 {[%emt 0:04:02]} ({Predecessor:} 9. Nc3 Nd5 10. Ne4 Be7 11. O-O O-O 12. Ba3 Qa5 13. Bb2 e5 14. Nfd2 Be6 15. Nc4 {1-0 Meier,G (2614)-Panjwani,R (2485) American Continental 17th 2023 (7)}) 9... O-O {[%emt 0:01:40]} 10. Nc4 {[%emt 0:00:52]} e5 {[%emt 0:02:10]} 11. h3 {[%emt 0:01:05] Repels Bg4} Be6 {[%emt 0:06:22]} 12. O-O {[%emt 0:01:59]} Ng6 {[%emt 0:14:11]} 13. Nxd6 {[%emt 0:05:19]} Qxd6 {[%emt 0:03:52]} 14. Nd2 {[%emt 0:00:58]} f5 {[%emt 0:02:11] Wards off Ne4} 15. Nc4 {[%emt 0:00:20]} Qe7 {[%emt 0:01:15]} 16. Qe2 {[%emt 0:03:41]} Bd5 {[%emt 0:01:04]} 17. f4 {[%emt 0:02:35][%cal Rc4e5,Bf2f4,Bf4e5][%mdl 32]} Qh4 {[%emt 0:19:58]} (17... Bxc4 $142 18. dxc4 e4) 18. Nxe5 $16 {[%emt 0:17:10]} (18. fxe5 $6 f4 $14) 18... Nxe5 {[%emt 0:00:17]} 19. fxe5 {[%emt 0:00:19]} Rae8 {[%emt 0:02:20] [#] ...Qd4+ would be deadly.} 20. Qf2 {[%emt 0:01:12]} Qh5 {[%emt 0:04:21]} (20... Qxf2+ $16 {is a better defense.} 21. Rxf2 Rxe5) 21. c4 $18 {[%emt 0:01:03]} (21. Qxc5 $6 Qe2 22. Qf2 Rxe5 $16) 21... Be6 {[%emt 0:00:05]} 22. Qf3 {[%emt 0:02:42]} (22. Qxc5 $18 Rc8 23. Qxa7) 22... Qh4 {[%emt 0:01:01]} (22... Qxf3 $16 23. Rxf3 Bc8) 23. Qf4 {[%emt 0:03:04]} (23. Qxc6 $2 {is the wrong capture.} Qd4+ $19) (23. Be3 $18) 23... Qd8 {[%emt 0:01:27]} 24. Rf3 {[%emt 0:03:14]} h6 {[%emt 0:02:40]} 25. h4 {[%emt 0:02:10]} ({White should play} 25. Qe3) 25... Bf7 $16 {[%emt 0:00:03]} 26. Rg3 {[%emt 0:03:17] Strongly threatening Ba3.} (26. Qxf5 Qd4+ 27. Kh2 Bd5 $19) 26... Bh5 {[%emt 0:01:31]} 27. Be3 {[%emt 0:04:35]} ({But not} 27. Qxh6 $6 Qd4+ 28. Qe3 Qxa1 $11) 27... Qe7 {[%emt 0:02:47]} 28. d4 {[%emt 0:19:43]} (28. Qxh6 $2 {loses.} Qxe5 $19) 28... Bg4 {[%emt 0:00:54]} 29. d5 {[%emt 0:02:12]} cxd5 {[%emt 0:02:31]} 30. cxd5 {[%emt 0:00:05] [#] aiming for e6.} Qxe5 {[%emt 0:01:28]} 31. Qxe5 {[%emt 0:00:08]} Rxe5 {[%emt 0:00:03]} 32. Bxc5 {[%emt 0:00:40]} Rf7 {[%emt 0:00:04]} 33. Rd3 {[%emt 0:00:53][%cal Od5d6]} f4 {[%emt 0:04:32]} 34. Rf1 {[%emt 0:05:44]} a6 {[%emt 0:05:26]} 35. Rf2 {[%emt 0:02:27]} g5 {[%emt 0:02:49]} 36. hxg5 {[%emt 0:00:34]} hxg5 {[%emt 0:00:05]} 37. Rfd2 {[%emt 0:00:26]} Bd7 {[%emt 0:01:05]} (37... Rc7 $5 {[%cal Rc7c5]} 38. b4 Rh7 $11) 38. a4 {[%emt 0:01:42] Dodges Bb5} g4 {[%emt 0:00:49] The position is equal.} 39. Bd6 {[%emt 0:01:24]} Re1+ {[%emt 0:01:06]} 40. Kf2 {[%emt 0:00:09]} Rb1 {[%emt 0:01:22]} 41. Rd1 {[%emt 0:34:56]} Rb2+ {[%emt 0:31:53]} 42. R1d2 {[%emt 0:02:04]} Rb1 {[%emt 0:00:04]} 43. Rd1 {[%emt 0:00:00]} Rb2+ {[%emt 0:00:00] White really could win this.   Weighted Error Value: White=0.20 (precise) /Black=0.19 (very precise)} 1/2-1/2

[Event "13th Rheinland-Pfalz-Open 2023"]
[Site "Neuwied-Engers"]
[Date "2023.06.10"]
[Round "5.6"]
[White "Morlo, Michael"]
[Black "Iolis, Oleg"]
[Result "0-1"]
[Annotator "TA"]
[ECO "A28"]
[WhiteElo "2262"]
[BlackElo "2168"]
[PlyCount "52"]
[EventDate "2023.01.12"]
[EventType "swiss"]
[EventCountry "GER"]
[SourceTitle "playchess.com"]
[Source "ChessBase"]
[SourceQuality "1"]
[TimeControl "40/5400+30:1800+30"]

{[%evp 9,52,-18,-15,-6,0,-27,-13,-22,-3,-4,-4,-2,-4,4,0,0,0,0,0,0,0,0,42,31,30,30,73,20,25,22,30,23,19,-3,-4,-193,-191,-193,-183,-530,-520,-541,-529,-505,-486]} 1. c4 {[%emt 0:00:14]} e5 {[%emt 0:00:10]} 2. Nc3 {[%emt 0:00:19]} Nf6 {[%emt 0:00:15]} 3. Nf3 {[%emt 0:00:33]} Nc6 {[%emt 0:00:09]} 4. a3 {[%emt 0:01:13]} g6 {[%emt 0:00:20]} 5. e4 {[%emt 0:05:36]} Bg7 {[%emt 0:01:45]} 6. d3 {[%emt 0:01:03] A28: English Opening: Four Knights Variation.} ({Reject} 6. d4 exd4 7. Nxd4 Nxe4 8. Nxc6 Nxc3 9. Nxd8 Nxd1 10. Kxd1 Kxd8 $17) 6... d6 {[%emt 0:01:08]} 7. h3 {[%emt 0:00:09]} O-O {[%emt 0:03:30] [#]} 8. Bg5 $146 {[%emt 0:00:32] The position is equal.} ({Predecessor:} 8. Be3 Nd7 9. d4 exd4 10. Nxd4 Re8 11. Nxc6 bxc6 12. Qc2 Nc5 13. O-O-O Qe7 14. f3 {1-0 Kortschnoj,V (2619)-Podgaets,M (2487) Geller Memorial rapid 2005 (5)}) 8... Nd4 {[%emt 0:01:57]} (8... h6 $5 {[%cal Rh6g5]} 9. Bd2 Nd7 $15) 9. Nxd4 {[%emt 0:04:16]} exd4 {[%emt 0:00:04]} 10. Nd5 {[%emt 0:00:03] Qf3 is the strong threat.} c6 {[%emt 0:00:21]} 11. Nxf6+ {[%emt 0:00:38]} Bxf6 {[%emt 0:00:03]} 12. Bxf6 {[%emt 0:02:20]} Qxf6 {[%emt 0:00:04]} 13. Be2 {[%emt 0:00:08]} d5 {[%emt 0:14:15]} 14. cxd5 {[%emt 0:00:46]} cxd5 {[%emt 0:00:08]} 15. exd5 {[%emt 0:00:09]} Qg5 {[%emt 0:02:46]} 16. Bf3 {[%emt 0:00:18]} Re8+ {[%emt 0:00:41]} 17. Kf1 {[%emt 0:00:05]} h5 {[%emt 0:06:54]} 18. h4 {[%emt 0:02:48]} ({White should play} 18. Qa4 $16 Qe5 19. g3) 18... Qf6 $11 {[%emt 0:03:20]} 19. g3 {[%emt 0:06:14]} b6 {[%emt 0:02:31]} 20. Kg2 {[%emt 0:01:57]} Bb7 {[%emt 0:00:35]} 21. Qb3 {[%emt 0:14:23]} Re5 {[%emt 0:00:36][%cal Be8e5,Be5f5,Bf5f3][%mdl 32] Hoping for ...Rf5.} 22. Rae1 $2 {[%emt 0:05:46] Loses the game.} (22. Rhf1 $11 {and White has nothing to worry.}) 22... Rf5 $19 {[%emt 0:01:43]} 23. Qd1 {[%emt 0:00:09] [#]} Rd8 $1 {[%emt 0:00:57][%cal Of5f3] aiming for ...Rxf3!} 24. Rhf1 $2 {[%emt 0:07:20] [#]} (24. Re4) 24... Rxf3 $1 {[%emt 0:00:51][%mdl 576] Remove Defender. Black is clearly winning.} 25. Qxf3 {[%emt 0:00:05]} Bxd5 {[%emt 0:00:06][%mdl 64] Pin} 26. Re4 {[%emt 0:00:04]} Qxf3+ {[%emt 0:00:06] Weighted Error Value: White=0.43/Black=0.06 (flawless)} 0-1